[Event "*** Titled Tuesday Blitz"]
[Site "Chess.com"]
[Date "2020.05.26"]
[Round "8"]
[White "Tacticusbd"]
[Black "CHESSMASTER759"]
[Result "0-1"]
[WhiteElo "2441"]
[BlackElo "2653"]
[TimeControl "180+1"]
[EndTime "11:39:48 PDT"]
[Termination "CHESSMASTER759 won on time"]

1. e4 {[%clk 0:03:00.9]} 1... d6 {[%clk 0:02:59.3]} 2. d4 {[%clk 0:02:53.4]}
2... Nf6 {[%clk 0:02:59.8]} 3. Nc3 {[%clk 0:02:51.7]} 3... e5 {[%clk 0:03:00.4]}
4. Nge2 {[%clk 0:02:50]} 4... Nbd7 {[%clk 0:03:00.6]} 5. g3 {[%clk 0:02:48.7]}
5... g6 {[%clk 0:03:00.8]} 6. Bg2 {[%clk 0:02:44.6]} 6... Bg7 {[%clk 0:03:01]}
7. h3 {[%clk 0:02:39]} 7... O-O {[%clk 0:03:00.7]} 8. O-O {[%clk 0:02:34.2]}
8... b6 {[%clk 0:03:00.8]} 9. g4 {[%clk 0:02:29.1]} 9... Ba6 {[%clk 0:03:00.4]}
10. Re1 {[%clk 0:02:27.9]} 10... h5 {[%clk 0:02:57.4]} 11. g5 {[%clk 0:02:24.6]}
11... Nh7 {[%clk 0:02:56.3]} 12. h4 {[%clk 0:02:23.4]} 12... f6 {[%clk
0:02:54.2]} 13. dxe5 {[%clk 0:02:21.3]} 13... dxe5 {[%clk 0:02:39.9]} 14. Bh3
{[%clk 0:01:43.5]} 14... Nc5 {[%clk 0:02:36.8]} 15. Qxd8 {[%clk 0:01:05.2]}
15... Raxd8 {[%clk 0:02:37.7]} 16. b4 {[%clk 0:00:48.5]} 16... Bxe2 {[%clk
0:02:36.6]} 17. Rxe2 {[%clk 0:00:46.8]} 17... Na6 {[%clk 0:02:19.2]} 18. Nd5
{[%clk 0:00:46.1]} 18... fxg5 {[%clk 0:02:07.3]} 19. Be6+ {[%clk 0:00:43.4]}
19... Kh8 {[%clk 0:02:04.6]} 20. hxg5 {[%clk 0:00:41.5]} 20... Rd6 {[%clk
0:02:01.1]} 21. Bh3 {[%clk 0:00:26.2]} 21... c6 {[%clk 0:02:00.5]} 22. b5 {[%clk
0:00:22.2]} 22... cxd5 {[%clk 0:01:51.5]} 23. bxa6 {[%clk 0:00:21.1]} 23... Rfd8
{[%clk 0:01:33.8]} 24. Ba3 {[%clk 0:00:13.9]} 24... Rc6 {[%clk 0:01:33.7]} 25.
exd5 {[%clk 0:00:13.1]} 25... Rc3 {[%clk 0:01:29.5]} 26. Be7 {[%clk 0:00:11.2]}
26... Rxd5 {[%clk 0:01:21.2]} 27. Bg2 {[%clk 0:00:08.8]} 27... Rd4 {[%clk
0:01:21.6]} 28. Rae1 {[%clk 0:00:06.7]} 28... Kg8 {[%clk 0:01:11.6]} 0-1

[Event "*** Titled Tuesday Blitz"]
[Site "Chess.com"]
[Date "2020.05.26"]
[Round "8"]
[White "Tenamu"]
[Black "Ranindu2003"]
[Result "1/2-1/2"]
[WhiteElo "2381"]
[BlackElo "2509"]
[TimeControl "180+1"]
[EndTime "11:39:53 PDT"]
[Termination "Game drawn by repetition"]

1. d4 {[%clk 0:03:00.9]} 1... d5 {[%clk 0:02:59.4]} 2. Nc3 {[%clk 0:03:00.7]}
2... Nf6 {[%clk 0:02:58.1]} 3. Bf4 {[%clk 0:03:00.7]} 3... a6 {[%clk 0:02:55.8]}
4. e3 {[%clk 0:02:51.7]} 4... e6 {[%clk 0:02:55.3]} 5. Nf3 {[%clk 0:02:48.2]}
5... c5 {[%clk 0:02:54.8]} 6. Ne5 {[%clk 0:02:47.9]} 6... Nc6 {[%clk 0:02:50.7]}
7. Be2 {[%clk 0:02:47]} 7... Bd6 {[%clk 0:02:45.9]} 8. Qd2 {[%clk 0:02:39]} 8...
cxd4 {[%clk 0:02:22.9]} 9. exd4 {[%clk 0:02:38.2]} 9... Qc7 {[%clk 0:02:21.2]}
10. Qe3 {[%clk 0:02:25.3]} 10... Nd7 {[%clk 0:01:32.7]} 11. Nxd5 {[%clk
0:02:03.8]} 11... Qa5+ {[%clk 0:01:26.6]} 12. Nc3 {[%clk 0:02:01.3]} 12... Ncxe5
{[%clk 0:01:24.9]} 13. dxe5 {[%clk 0:01:59]} 13... Bxe5 {[%clk 0:01:22.1]} 14.
Bxe5 {[%clk 0:01:58.2]} 14... Qxe5 {[%clk 0:01:22.8]} 15. Qxe5 {[%clk
0:01:55.2]} 15... Nxe5 {[%clk 0:01:23.7]} 16. O-O-O {[%clk 0:01:55.8]} 16... O-O
{[%clk 0:01:21.3]} 17. f4 {[%clk 0:01:53.3]} 17... Ng6 {[%clk 0:01:09.3]} 18. g3
{[%clk 0:01:52.1]} 18... b5 {[%clk 0:00:56.8]} 19. Bf3 {[%clk 0:01:50.9]} 19...
Rb8 {[%clk 0:00:56.3]} 20. h4 {[%clk 0:01:50.6]} 20... Bb7 {[%clk 0:00:46.2]}
21. Bxb7 {[%clk 0:01:49]} 21... Rxb7 {[%clk 0:00:47.1]} 22. Rd6 {[%clk 0:01:49]}
22... a5 {[%clk 0:00:46.6]} 23. Rhd1 {[%clk 0:01:46.9]} 23... h5 {[%clk
0:00:39.1]} 24. Rd7 {[%clk 0:01:44.8]} 24... Rfb8 {[%clk 0:00:37.4]} 25. Rxb7
{[%clk 0:01:37.3]} 25... Rxb7 {[%clk 0:00:38.1]} 26. Ne4 {[%clk 0:01:34.6]}
26... f6 {[%clk 0:00:31.2]} 27. Rd8+ {[%clk 0:01:33]} 27... Kh7 {[%clk
0:00:29.6]} 28. Nd6 {[%clk 0:01:29.7]} 28... Rb6 {[%clk 0:00:22.8]} 29. Ne8
{[%clk 0:01:24.9]} 29... Rb7 {[%clk 0:00:18.1]} 30. Nd6 {[%clk 0:01:20]} 30...
Rb6 {[%clk 0:00:18.2]} 31. Rd7 {[%clk 0:01:20]} 31... Nf8 {[%clk 0:00:12.7]} 32.
Rd8 {[%clk 0:01:20]} 32... Ng6 {[%clk 0:00:12.4]} 1/2-1/2

[Event "*** Titled Tuesday Blitz"]
[Site "Chess.com"]
[Date "2020.05.26"]
[Round "8"]
[White "VitaliyBernadskiy"]
[Black "SantoBlue"]
[Result "1-0"]
[WhiteElo "2715"]
[BlackElo "2786"]
[TimeControl "180+1"]
[EndTime "11:39:59 PDT"]
[Termination "VitaliyBernadskiy won on time"]

1. e4 {[%clk 0:03:00.9]} 1... d6 {[%clk 0:02:59.2]} 2. Nc3 {[%clk 0:02:59.8]}
2... e5 {[%clk 0:02:57.7]} 3. g3 {[%clk 0:02:57.9]} 3... Nc6 {[%clk 0:02:52.8]}
4. Bg2 {[%clk 0:02:57.9]} 4... f5 {[%clk 0:02:52.2]} 5. exf5 {[%clk 0:02:47.5]}
5... Bxf5 {[%clk 0:02:51.8]} 6. Nf3 {[%clk 0:02:46.6]} 6... Be7 {[%clk
0:02:46.3]} 7. O-O {[%clk 0:02:44.2]} 7... Nf6 {[%clk 0:02:45.5]} 8. d4 {[%clk
0:02:44.3]} 8... e4 {[%clk 0:02:39.8]} 9. Ng5 {[%clk 0:02:42.5]} 9... d5 {[%clk
0:02:38.6]} 10. f3 {[%clk 0:02:42.6]} 10... h6 {[%clk 0:02:23.1]} 11. fxe4
{[%clk 0:02:35.6]} 11... Bg4 {[%clk 0:02:23.2]} 12. Qd3 {[%clk 0:01:38.5]} 12...
Nb4 {[%clk 0:02:06.1]} 13. Qd2 {[%clk 0:01:38.7]} 13... hxg5 {[%clk 0:02:01.5]}
14. a3 {[%clk 0:01:38.9]} 14... Na6 {[%clk 0:01:52.8]} 15. Qxg5 {[%clk
0:01:38.2]} 15... dxe4 {[%clk 0:01:42.8]} 16. Qg6+ {[%clk 0:01:38.3]} 16... Kd7
{[%clk 0:01:32.2]} 17. Nxe4 {[%clk 0:01:33.5]} 17... Kc8 {[%clk 0:01:26.3]} 18.
c3 {[%clk 0:01:20.2]} 18... Bd7 {[%clk 0:01:14]} 19. Qxg7 {[%clk 0:01:16.5]}
19... Nxe4 {[%clk 0:01:11]} 20. Bxe4 {[%clk 0:01:15.6]} 20... Rg8 {[%clk
0:01:04.2]} 21. Qh6 {[%clk 0:01:14]} 21... c6 {[%clk 0:01:00.2]} 22. Bf4 {[%clk
0:01:12.9]} 22... Nc7 {[%clk 0:00:54.4]} 23. Rae1 {[%clk 0:01:11]} 23... Ne6
{[%clk 0:00:54.6]} 24. Bf5 {[%clk 0:01:02.3]} 24... Nxf4 {[%clk 0:00:51.4]} 25.
Qxf4 {[%clk 0:01:02.8]} 25... Bg5 {[%clk 0:00:46.3]} 26. Qe5 {[%clk 0:00:56.8]}
26... b6 {[%clk 0:00:23.2]} 27. Be6 {[%clk 0:00:55.6]} 27... Kb7 {[%clk
0:00:12.1]} 28. Rf7 {[%clk 0:00:52.5]} 1-0

[Event "*** Titled Tuesday Blitz"]
[Site "Chess.com"]
[Date "2020.05.26"]
[Round "8"]
[White "Gloomy_Wanderer"]
[Black "AlexOstrovskiy"]
[Result "1-0"]
[WhiteElo "2758"]
[BlackElo "2621"]
[TimeControl "180+1"]
[EndTime "11:39:59 PDT"]
[Termination "Gloomy_Wanderer won by resignation"]

1. d4 {[%clk 0:03:00.9]} 1... e6 {[%clk 0:02:55.9]} 2. c4 {[%clk 0:03:00.4]}
2... b6 {[%clk 0:02:56.3]} 3. e4 {[%clk 0:02:59.8]} 3... Bb4+ {[%clk 0:02:50.6]}
4. Bd2 {[%clk 0:02:59.3]} 4... Bxd2+ {[%clk 0:02:50.5]} 5. Qxd2 {[%clk 0:02:59]}
5... d5 {[%clk 0:02:50.9]} 6. cxd5 {[%clk 0:02:55.1]} 6... exd5 {[%clk
0:02:51.8]} 7. e5 {[%clk 0:02:55.4]} 7... Ne7 {[%clk 0:02:51.1]} 8. Nc3 {[%clk
0:02:52.7]} 8... O-O {[%clk 0:02:51]} 9. Bd3 {[%clk 0:02:52.5]} 9... c5 {[%clk
0:02:50.7]} 10. Nge2 {[%clk 0:02:51]} 10... Nbc6 {[%clk 0:02:48.5]} 11. f4
{[%clk 0:02:51.1]} 11... Nf5 {[%clk 0:01:38.6]} 12. dxc5 {[%clk 0:02:25.9]}
12... d4 {[%clk 0:01:32.3]} 13. Ne4 {[%clk 0:02:23.5]} 13... bxc5 {[%clk
0:01:23.2]} 14. O-O {[%clk 0:02:12]} 14... Ne3 {[%clk 0:01:08.2]} 15. Rfc1
{[%clk 0:02:11.7]} 15... c4 {[%clk 0:00:59.7]} 16. Bxc4 {[%clk 0:02:09.7]} 16...
Nxc4 {[%clk 0:00:57.9]} 17. Rxc4 {[%clk 0:02:09.8]} 17... Qd5 {[%clk 0:00:56.6]}
18. Nd6 {[%clk 0:02:09.8]} 18... Ba6 {[%clk 0:00:53.6]} 19. Nc3 {[%clk
0:01:54.2]} 19... Qa5 {[%clk 0:00:23.8]} 20. Rxc6 {[%clk 0:01:48.1]} 20... dxc3
{[%clk 0:00:23.9]} 21. Qxc3 {[%clk 0:01:48.1]} 21... Qa4 {[%clk 0:00:23.8]} 22.
b3 {[%clk 0:01:24.3]} 22... Qa3 {[%clk 0:00:20.8]} 23. Qc1 {[%clk 0:01:10.8]}
23... Qa5 {[%clk 0:00:20.2]} 24. Qc5 {[%clk 0:01:06.2]} 24... Qd2 {[%clk
0:00:15.5]} 25. Rxa6 {[%clk 0:01:01.4]} 25... Qxf4 {[%clk 0:00:15.3]} 26. Rf1
{[%clk 0:01:00]} 26... Qd2 {[%clk 0:00:13.3]} 27. Rxa7 {[%clk 0:00:52.8]} 27...
Rad8 {[%clk 0:00:11.5]} 28. Qf2 {[%clk 0:00:48.3]} 28... Qd5 {[%clk 0:00:11.1]}
29. Rxf7 {[%clk 0:00:46.2]} 1-0

[Event "*** Titled Tuesday Blitz"]
[Site "Chess.com"]
[Date "2020.05.26"]
[Round "8"]
[White "2L8IWUN"]
[Black "rynos0411"]
[Result "1-0"]
[WhiteElo "2550"]
[BlackElo "2367"]
[TimeControl "180+1"]
[EndTime "11:39:59 PDT"]
[Termination "2L8IWUN won by checkmate"]

1. d4 {[%clk 0:03:00.9]} 1... Nf6 {[%clk 0:02:57.5]} 2. Nf3 {[%clk 0:03:01.3]}
2... e6 {[%clk 0:02:56.7]} 3. Bf4 {[%clk 0:03:00.9]} 3... d5 {[%clk 0:02:55.1]}
4. e3 {[%clk 0:02:57.9]} 4... Bd6 {[%clk 0:02:53.6]} 5. Bg3 {[%clk 0:02:58.3]}
5... c5 {[%clk 0:02:46.9]} 6. Nbd2 {[%clk 0:02:58]} 6... Nc6 {[%clk 0:02:45.2]}
7. c3 {[%clk 0:02:56.8]} 7... O-O {[%clk 0:02:45.1]} 8. Bd3 {[%clk 0:02:56.7]}
8... Re8 {[%clk 0:02:44.5]} 9. Ne5 {[%clk 0:02:48.8]} 9... Qc7 {[%clk
0:02:41.1]} 10. f4 {[%clk 0:02:26.8]} 10... Rb8 {[%clk 0:02:32.1]} 11. Bh4
{[%clk 0:01:55.1]} 11... Be7 {[%clk 0:02:19.8]} 12. Qf3 {[%clk 0:01:44.6]} 12...
b5 {[%clk 0:02:13.8]} 13. Qh3 {[%clk 0:01:43.4]} 13... g6 {[%clk 0:02:05.7]} 14.
O-O {[%clk 0:01:35.8]} 14... b4 {[%clk 0:01:54.1]} 15. Ndf3 {[%clk 0:01:27.6]}
15... bxc3 {[%clk 0:01:40.7]} 16. bxc3 {[%clk 0:01:28.5]} 16... c4 {[%clk
0:01:38.6]} 17. Bc2 {[%clk 0:01:25.5]} 17... Nxe5 {[%clk 0:01:27.8]} 18. fxe5
{[%clk 0:01:23.2]} 18... Nh5 {[%clk 0:01:19.1]} 19. g4 {[%clk 0:01:07.3]} 19...
Ng7 {[%clk 0:01:17.3]} 20. Bf6 {[%clk 0:00:59.1]} 20... Rb2 {[%clk 0:01:05]} 21.
Ng5 {[%clk 0:00:54.8]} 21... h5 {[%clk 0:01:04]} 22. Rac1 {[%clk 0:00:51.9]}
22... Rf8 {[%clk 0:00:46.5]} 23. gxh5 {[%clk 0:00:44.2]} 23... Bxf6 {[%clk
0:00:36]} 24. hxg6 {[%clk 0:00:34.3]} 24... Rd8 {[%clk 0:00:27.5]} 25. Qh7+
{[%clk 0:00:30.2]} 25... Kf8 {[%clk 0:00:27.5]} 26. exf6 {[%clk 0:00:22.5]}
26... Nf5 {[%clk 0:00:22.5]} 27. Qh8# {[%clk 0:00:20.5]} 1-0

[Event "*** Titled Tuesday Blitz"]
[Site "Chess.com"]
[Date "2020.05.26"]
[Round "8"]
[White "joejan"]
[Black "MaxLeto"]
[Result "1-0"]
[WhiteElo "2196"]
[BlackElo "2301"]
[TimeControl "180+1"]
[EndTime "11:39:59 PDT"]
[Termination "joejan won on time"]

1. e4 {[%clk 0:03:00.9]} 1... c5 {[%clk 0:02:52.5]} 2. Nc3 {[%clk 0:02:58.1]}
2... d6 {[%clk 0:02:51.9]} 3. f4 {[%clk 0:02:58.4]} 3... Nc6 {[%clk 0:02:49.5]}
4. Nf3 {[%clk 0:02:56.6]} 4... g6 {[%clk 0:02:49.5]} 5. Bc4 {[%clk 0:02:55.5]}
5... Bg7 {[%clk 0:02:49.6]} 6. O-O {[%clk 0:02:54.5]} 6... e6 {[%clk 0:01:53.7]}
7. d3 {[%clk 0:02:51.9]} 7... Nge7 {[%clk 0:01:50.2]} 8. Qe1 {[%clk 0:02:33.1]}
8... O-O {[%clk 0:01:42.6]} 9. f5 {[%clk 0:02:29.3]} 9... d5 {[%clk 0:01:25.5]}
10. Bb3 {[%clk 0:02:26.8]} 10... gxf5 {[%clk 0:01:13.4]} 11. exd5 {[%clk
0:02:23.7]} 11... Nxd5 {[%clk 0:01:04.9]} 12. Nxd5 {[%clk 0:02:22.4]} 12... exd5
{[%clk 0:01:05.8]} 13. Bg5 {[%clk 0:02:19.1]} 13... Qd6 {[%clk 0:01:04.1]} 14.
Qh4 {[%clk 0:02:14.4]} 14... Bxb2 {[%clk 0:00:58.9]} 15. Rae1 {[%clk 0:02:08.6]}
15... Bd7 {[%clk 0:00:46.4]} 16. Bf4 {[%clk 0:01:59.3]} 16... Qg6 {[%clk
0:00:35]} 17. Bxd5 {[%clk 0:01:52.1]} 17... Rfe8 {[%clk 0:00:33]} 18. Qf2 {[%clk
0:01:42.7]} 18... Bc3 {[%clk 0:00:29]} 19. Rxe8+ {[%clk 0:01:40.4]} 19... Rxe8
{[%clk 0:00:29.9]} 20. Qxc5 {[%clk 0:01:38.5]} 20... Ba5 {[%clk 0:00:24.1]} 21.
Ng5 {[%clk 0:01:38]} 21... Bb6 {[%clk 0:00:22.7]} 22. Qxb6 {[%clk 0:01:32.4]}
22... axb6 {[%clk 0:00:22.2]} 23. Bxf7+ {[%clk 0:01:31.8]} 23... Kg7 {[%clk
0:00:18.4]} 24. Bxg6 {[%clk 0:01:30.2]} 24... hxg6 {[%clk 0:00:07.9]} 25. Nf3
{[%clk 0:01:28.7]} 25... Nb4 {[%clk 0:00:06.4]} 26. Rb1 {[%clk 0:01:24.5]} 26...
Nxc2 {[%clk 0:00:05.3]} 27. Rxb6 {[%clk 0:01:23.3]} 27... Bc6 {[%clk 0:00:05.5]}
28. Ne5 {[%clk 0:01:20.8]} 28... Nd4 {[%clk 0:00:05]} 29. Nxc6 {[%clk
0:01:16.1]} 29... bxc6 {[%clk 0:00:05.9]} 30. Bg5 {[%clk 0:01:09]} 30... Re2
{[%clk 0:00:02.9]} 31. Rb7+ {[%clk 0:01:08.4]} 31... Kf8 {[%clk 0:00:02.6]} 32.
Bf6 {[%clk 0:01:07.2]} 32... Ne6 {[%clk 0:00:01.4]} 33. Re7 {[%clk 0:01:04.1]}
1-0

[Event "*** Titled Tuesday Blitz"]
[Site "Chess.com"]
[Date "2020.05.26"]
[Round "8"]
[White "tan275"]
[Black "tamarozi99"]
[Result "1-0"]
[WhiteElo "2172"]
[BlackElo "2004"]
[TimeControl "180+1"]
[EndTime "11:40:00 PDT"]
[Termination "tan275 won by resignation"]

1. d4 {[%clk 0:03:00.9]} 1... Nf6 {[%clk 0:02:59.1]} 2. c4 {[%clk 0:02:58.8]}
2... g6 {[%clk 0:02:58.7]} 3. g3 {[%clk 0:02:59]} 3... Bg7 {[%clk 0:02:58.1]} 4.
Bg2 {[%clk 0:02:59.9]} 4... O-O {[%clk 0:02:57.8]} 5. Nc3 {[%clk 0:03:00.7]}
5... d6 {[%clk 0:02:57.6]} 6. Nf3 {[%clk 0:03:01.2]} 6... Nc6 {[%clk 0:02:56.6]}
7. h3 {[%clk 0:03:00.5]} 7... a6 {[%clk 0:02:56.3]} 8. Bg5 {[%clk 0:02:57.4]}
8... Rb8 {[%clk 0:02:55.3]} 9. Rc1 {[%clk 0:02:56]} 9... b5 {[%clk 0:02:52.3]}
10. cxb5 {[%clk 0:02:54.4]} 10... axb5 {[%clk 0:02:52]} 11. Nxb5 {[%clk
0:02:54.7]} 11... Rxb5 {[%clk 0:02:51.4]} 12. Rxc6 {[%clk 0:02:54.5]} 12... Rxb2
{[%clk 0:02:51.2]} 13. Rc2 {[%clk 0:02:51.5]} 13... Rxc2 {[%clk 0:02:46]} 14.
Qxc2 {[%clk 0:02:52.4]} 14... Bf5 {[%clk 0:02:46.1]} 15. Qc1 {[%clk 0:02:48.3]}
15... Qa8 {[%clk 0:02:34.5]} 16. O-O {[%clk 0:02:37.9]} 16... Qxa2 {[%clk
0:02:33.9]} 17. Qxc7 {[%clk 0:02:34.6]} 17... Qxe2 {[%clk 0:02:22.6]} 18. Re1
{[%clk 0:02:33.4]} 18... Qd3 {[%clk 0:02:22.5]} 19. Rxe7 {[%clk 0:02:24.9]}
19... Ne4 {[%clk 0:01:54.9]} 20. Be3 {[%clk 0:02:02]} 20... Bf6 {[%clk
0:01:34.7]} 21. g4 {[%clk 0:01:34]} 21... Bxe7 {[%clk 0:01:10.6]} 22. Qxe7
{[%clk 0:01:34.9]} 22... Be6 {[%clk 0:00:53.6]} 23. Bh6 {[%clk 0:01:27.2]} 23...
Rc8 {[%clk 0:00:44.2]} 24. Ng5 {[%clk 0:01:19.4]} 24... Nxf2 {[%clk 0:00:24.6]}
25. Qf6 {[%clk 0:01:00.4]} 25... Rc1+ {[%clk 0:00:14.9]} 26. Kh2 {[%clk
0:00:56.4]} 26... Rh1+ {[%clk 0:00:14.2]} 27. Bxh1 {[%clk 0:00:56.5]} 27...
Nxg4+ {[%clk 0:00:11.9]} 28. hxg4 {[%clk 0:00:56.2]} 28... Qd2+ {[%clk
0:00:10.2]} 29. Bg2 {[%clk 0:00:56]} 1-0

[Event "*** Titled Tuesday Blitz"]
[Site "Chess.com"]
[Date "2020.05.26"]
[Round "8"]
[White "CraiggoryC"]
[Black "NefeLV"]
[Result "1-0"]
[WhiteElo "2092"]
[BlackElo "1781"]
[TimeControl "180+1"]
[EndTime "11:40:02 PDT"]
[Termination "CraiggoryC won by resignation"]

1. e4 {[%clk 0:02:19.7]} 1... e6 {[%clk 0:02:56.9]} 2. d4 {[%clk 0:02:19.2]}
2... d5 {[%clk 0:02:53.8]} 3. e5 {[%clk 0:02:19.5]} 3... c5 {[%clk 0:02:52.5]}
4. c3 {[%clk 0:02:20]} 4... Nc6 {[%clk 0:02:49.9]} 5. Nf3 {[%clk 0:02:20.3]}
5... cxd4 {[%clk 0:02:46.2]} 6. cxd4 {[%clk 0:02:18.8]} 6... Be7 {[%clk
0:02:43.6]} 7. Nc3 {[%clk 0:02:16.1]} 7... Bd7 {[%clk 0:02:42.9]} 8. Bd3 {[%clk
0:02:15.1]} 8... a6 {[%clk 0:02:42.9]} 9. O-O {[%clk 0:02:14.1]} 9... Nh6 {[%clk
0:02:42.7]} 10. Na4 {[%clk 0:01:56]} 10... Nf5 {[%clk 0:02:25.2]} 11. Be3 {[%clk
0:01:43.7]} 11... Nxe3 {[%clk 0:02:22.3]} 12. fxe3 {[%clk 0:01:44.6]} 12... O-O
{[%clk 0:02:22.5]} 13. Rc1 {[%clk 0:01:40.7]} 13... f6 {[%clk 0:02:22.1]} 14.
exf6 {[%clk 0:01:31.1]} 14... Bxf6 {[%clk 0:02:21]} 15. Nc5 {[%clk 0:01:28.6]}
15... Nb4 {[%clk 0:02:11.6]} 16. Bb1 {[%clk 0:01:18.6]} 16... b6 {[%clk
0:02:03.8]} 17. Nxd7 {[%clk 0:01:12.1]} 17... Qxd7 {[%clk 0:02:04.7]} 18. a3
{[%clk 0:01:12.4]} 18... Nc6 {[%clk 0:02:02.8]} 19. Qc2 {[%clk 0:01:12.4]} 19...
Rac8 {[%clk 0:02:00.5]} 20. Qxh7+ {[%clk 0:01:11.3]} 20... Kf7 {[%clk
0:01:59.3]} 21. Rxc6 {[%clk 0:01:00.3]} 21... Qxc6 {[%clk 0:01:48.7]} 22. Ne5+
{[%clk 0:00:58.2]} 22... Ke7 {[%clk 0:01:48.9]} 23. Nxc6+ {[%clk 0:00:50.9]}
23... Rxc6 {[%clk 0:01:49.8]} 24. Bd3 {[%clk 0:00:42.4]} 24... b5 {[%clk
0:01:47.6]} 25. h3 {[%clk 0:00:30.5]} 25... Rb8 {[%clk 0:01:45.8]} 26. Rxf6
{[%clk 0:00:26.6]} 26... Kxf6 {[%clk 0:01:44]} 27. Qg6+ {[%clk 0:00:26.3]} 27...
Ke7 {[%clk 0:01:44.2]} 28. Qxg7+ {[%clk 0:00:24.1]} 28... Kd8 {[%clk 0:01:44.1]}
29. Qf6+ {[%clk 0:00:17.2]} 29... Kc7 {[%clk 0:01:43.9]} 30. h4 {[%clk
0:00:16.7]} 30... Kb6 {[%clk 0:01:41.7]} 31. h5 {[%clk 0:00:15.1]} 31... Rc1+
{[%clk 0:01:36.8]} 32. Kh2 {[%clk 0:00:14.3]} 32... Re8 {[%clk 0:01:35.4]} 33.
h6 {[%clk 0:00:13.1]} 33... Ka5 {[%clk 0:01:34.1]} 34. h7 {[%clk 0:00:12.3]}
34... b4 {[%clk 0:01:34.4]} 35. axb4+ {[%clk 0:00:11.8]} 35... Kxb4 {[%clk
0:01:33.7]} 36. h8=Q {[%clk 0:00:12]} 36... Rxh8+ {[%clk 0:01:30.3]} 37. Qxh8
{[%clk 0:00:12.9]} 37... Kb3 {[%clk 0:01:30.2]} 38. Qb8+ {[%clk 0:00:12.1]}
38... Ka2 {[%clk 0:01:29.7]} 39. Bxa6 {[%clk 0:00:11.2]} 39... e5 {[%clk
0:01:29.1]} 40. dxe5 {[%clk 0:00:10.2]} 40... d4 {[%clk 0:01:28.5]} 41. Bc4+
{[%clk 0:00:08.2]} 41... Kb1 {[%clk 0:01:27.5]} 42. Bd3+ {[%clk 0:00:06.9]}
42... Ka2 {[%clk 0:01:27]} 43. Qg8+ {[%clk 0:00:06.2]} 43... Kxb2 {[%clk
0:01:25.6]} 44. exd4 {[%clk 0:00:06.2]} 44... Kc3 {[%clk 0:01:24.4]} 45. Qc8+
{[%clk 0:00:05.3]} 45... Kd2 {[%clk 0:01:24.5]} 46. Qxc1+ {[%clk 0:00:04.9]}
46... Kxc1 {[%clk 0:01:25.4]} 47. d5 {[%clk 0:00:04.9]} 47... Kd2 {[%clk
0:01:26.2]} 48. d6 {[%clk 0:00:05.3]} 48... Ke3 {[%clk 0:01:27.1]} 49. d7 {[%clk
0:00:05.9]} 1-0

[Event "*** Titled Tuesday Blitz"]
[Site "Chess.com"]
[Date "2020.05.26"]
[Round "8"]
[White "Gandrade2"]
[Black "FMchesstrainer"]
[Result "0-1"]
[WhiteElo "2013"]
[BlackElo "2419"]
[TimeControl "180+1"]
[EndTime "11:40:04 PDT"]
[Termination "FMchesstrainer won on time"]

1. d4 {[%clk 0:03:00.9]} 1... d5 {[%clk 0:02:58]} 2. c4 {[%clk 0:03:00.2]} 2...
e6 {[%clk 0:02:58]} 3. cxd5 {[%clk 0:03:00.2]} 3... exd5 {[%clk 0:02:56.8]} 4.
Nc3 {[%clk 0:03:00.8]} 4... Bf5 {[%clk 0:02:56.1]} 5. Nf3 {[%clk 0:02:51.6]}
5... c6 {[%clk 0:02:55.6]} 6. Bf4 {[%clk 0:02:49.8]} 6... Bd6 {[%clk 0:02:53.4]}
7. Bxd6 {[%clk 0:02:48.7]} 7... Qxd6 {[%clk 0:02:54.3]} 8. e3 {[%clk 0:02:49]}
8... Qb4 {[%clk 0:02:53.6]} 9. Qb3 {[%clk 0:02:31.2]} 9... a5 {[%clk 0:02:53.1]}
10. Be2 {[%clk 0:02:17.4]} 10... Nd7 {[%clk 0:02:52.5]} 11. O-O {[%clk
0:02:14.4]} 11... Ngf6 {[%clk 0:02:51.9]} 12. Nd2 {[%clk 0:02:10.2]} 12... O-O
{[%clk 0:02:48.7]} 13. a3 {[%clk 0:02:10.4]} 13... Qxb3 {[%clk 0:02:46.6]} 14.
Nxb3 {[%clk 0:02:11.3]} 14... a4 {[%clk 0:02:46.5]} 15. Nd2 {[%clk 0:01:59.6]}
15... b5 {[%clk 0:02:46.3]} 16. Rac1 {[%clk 0:01:55]} 16... Nb6 {[%clk
0:02:46.2]} 17. Rfe1 {[%clk 0:01:18.4]} 17... Rfe8 {[%clk 0:02:44.8]} 18. Bf1
{[%clk 0:01:13.2]} 18... Nc4 {[%clk 0:02:39.1]} 19. Nxc4 {[%clk 0:00:57.7]}
19... bxc4 {[%clk 0:02:40]} 20. Be2 {[%clk 0:00:57]} 20... Reb8 {[%clk
0:02:38.3]} 21. Bd1 {[%clk 0:00:55.7]} 21... Rxb2 {[%clk 0:02:36.6]} 22. Bxa4
{[%clk 0:00:55.3]} 22... Ne4 {[%clk 0:02:32.2]} 23. Bxc6 {[%clk 0:00:52.6]}
23... Rxa3 {[%clk 0:02:28.5]} 24. Nxd5 {[%clk 0:00:46.5]} 24... Be6 {[%clk
0:01:53.4]} 25. Nf4 {[%clk 0:00:36.9]} 25... Nxf2 {[%clk 0:01:50]} 26. Nxe6
{[%clk 0:00:36.4]} 26... fxe6 {[%clk 0:01:50.1]} 27. Rxc4 {[%clk 0:00:34.5]}
27... Nd3 {[%clk 0:01:47.5]} 28. Rf1 {[%clk 0:00:30.4]} 28... Nb4 {[%clk
0:01:32.5]} 29. Be4 {[%clk 0:00:24.5]} 29... g6 {[%clk 0:01:24.3]} 30. Rc8+
{[%clk 0:00:22.4]} 30... Kg7 {[%clk 0:01:24.5]} 31. Rc7+ {[%clk 0:00:20.1]}
31... Kh6 {[%clk 0:01:24]} 32. Re7 {[%clk 0:00:09.7]} 32... Rxe3 {[%clk
0:01:23.2]} 33. Rxe6 {[%clk 0:00:09.5]} 33... Rbe2 {[%clk 0:01:15.8]} 34. Rb6
{[%clk 0:00:06.9]} 34... Rxe4 {[%clk 0:01:14]} 35. Rxb4 {[%clk 0:00:07.1]} 35...
Rd2 {[%clk 0:01:14.1]} 36. Rb5 {[%clk 0:00:05.1]} 36... Ree2 {[%clk 0:01:12.6]}
37. g3 {[%clk 0:00:03.5]} 37... Rg2+ {[%clk 0:01:12.5]} 0-1